bitfinex/quotes_ETHUSD_20250603
["timestamp","ask_amount","ask_price","bid_price","bid_amount"]
[1748950686400,0.9541,2608.2,2607.4,6.7425608]
[1748950686731,0.9828,2608.1,2607.3,3.83528928]
[1748950687033,0.9253,2607.6,2607.2,0.35920668]
[1748950687217,0.9253,2607.4,2607.2,0.35920668]
[1748950688794,4.75318526,2607.3,2607.2,0.35920668]
[1748950690140,0.9178,2607.3,2607.2,0.35920668]
[1748950692838,4.8098,2607.3,2607.2,0.35920668]
[1748950695047,0.9178,2607.3,2607.2,0.35920668]
[1748950695208,5.33269858,2607.3,2607.2,0.35920668]
[1748950695846,1.44069858,2607.3,2607.2,0.35920668]
[1748950696146,4.8098,2607.3,2607.2,0.35920668]
[1748950697031,0.9178,2607.3,2607.2,0.35920668]
[1748950697446,4.8098,2607.3,2607.2,0.35920668]
[1748950697615,0.9178,2607.3,2607.2,0.35920668]
[1748950697816,4.8098,2607.3,2607.2,0.35920668]
[1748950698644,5.33838178,2607.3,2607.2,0.35920668]
[1748950700348,12.08118778,2607.3,2607.2,0.35920668]
[1748950700738,3.83553237,2607.2,2607.1,0.35922077]
[1748950701039,4.74873237,2607.2,2607.1,0.35922077]
[1748950701240,9.55300231,2607.2,2607.1,0.35922077]
[1748950703422,5.66000231,2607.2,2607.1,0.35922077]
[1748950703849,9.55300231,2607.2,2607.1,0.35922077]
[1748950705861,1.82446994,2607.2,2607.1,0.35922077]
[1748950706031,5.71746994,2607.2,2607.1,0.35922077]
[1748950706238,9.55300231,2607.2,2607.1,0.35922077]
[1748950706548,1.82446994,2607.2,2607.1,0.35922077]
[1748950706748,0.9132,2607.2,2607.1,0.35922077]
[1748950706955,4.8062,2607.2,2607.1,0.35922077]
[1748950707151,0.9132,2607.2,2607.1,0.35922077]
[1748950707355,4.8062,2607.2,2607.1,0.35922077]
[1748950723888,0.9132,2607.2,2607.1,0.35922077]
[1748950724089,4.8062,2607.2,2607.1,0.35922077]
[1748950726284,5.67035913,2607.2,2607.1,0.35922077]
[1748950727117,4.75715913,2607.2,2607.1,0.35922077]
[1748950727275,0.86415913,2607.2,2607.1,0.35922077]
[1748950727620,4.75715913,2607.2,2607.1,0.35922077]
[1748950729605,4.75715913,2607.2,2607.1,0.30922077]
[1748950729793,3.893,2607.2,2607.1,0.30922077]
[1748950735019,3.893,2607.3,2607.1,0.30922077]
[1748950735526,3.893,2607.2,2606.9,3.83597295]
[1748950736027,3.893,2607.2,2606.8,3.83603473]
[1748950736215,3.893,2607.2,2606.7,3.83617979]
[1748950736413,3.893,2607.2,2606.8,3.83600924]
[1748950736818,3.893,2607.2,2606.9,3.83597369]
[1748950737127,3.893,2607.2,2606.8,3.83599729]
[1748950737422,3.893,2607.2,2606.9,3.83595724]
[1748950738126,7.93,2607.6,2607.0,2.90742074]
[1748950738298,3.892,2607.4,2607.2,3.8354994]
[1748950739140,3.892,2607.4,2606.8,11.83607236]
[1748950739345,3.892,2607.4,2607.0,3.83581521]
[1748950739854,3.892,2607.4,2606.9,3.83593025]
[1748950740042,3.892,2607.4,2607.0,3.83582343]
[1748950741626,3.892,2607.4,2607.1,3.83565988]
[1748950743671,3.892,2607.4,2606.8,8.0]
[1748950743852,4.8132,2607.4,2606.5,2.90742074]
[1748950744056,4.8132,2607.4,2606.7,11.83617645]
[1748950744853,4.8132,2607.4,2606.8,3.83611853]
[1748950745187,4.8132,2607.4,2606.9,3.83588782]
[1748950745388,5.29452,2607.4,2606.9,3.83588782]
[1748950745980,3.892,2607.3,2607.0,3.83579108]
[1748950746437,3.892,2607.3,2607.1,3.83562757]
[1748950747638,3.892,2607.3,2607.0,3.83578134]
[1748950749276,3.892,2607.3,2606.9,3.83588699]
[1748950750176,3.892,2607.3,2606.8,3.83603142]
[1748950750379,0.9613,2607.2,2606.9,8.0]
[1748950750537,0.9613,2607.2,2606.9,0.14729362]
[1748950750741,0.9613,2607.2,2606.8,3.83610102]
[1748950751354,0.9613,2607.2,2606.7,3.83619717]
[1748950751679,1.48555,2607.2,2606.5,3.83654936]
[1748950751985,1.48555,2607.2,2606.6,3.83638544]
[1748950752986,3.892,2607.1,2606.8,3.83601786]
[1748950753280,3.892,2607.0,2606.5,3.83656244]
[1748950753455,3.892,2607.0,2606.9,3.83589699]
[1748950754043,3.892,2607.0,2606.8,3.83603691]
[1748950754668,3.892,2607.0,2606.8,3.83598009]
[1748950754874,3.892,2607.0,2606.9,3.83597376]
[1748950755173,3.892,2607.0,2606.8,3.83604083]
[1748950755752,3.892,2607.0,2606.9,3.83597376]
[1748950757985,3.892,2607.0,2606.8,3.83603297]
[1748950759076,3.892,2607.0,2606.9,3.83597376]
[1748950759257,3.892,2607.2,2606.9,3.83597376]
[1748950759775,3.892,2607.2,2606.8,3.83603097]
[1748950762786,3.892,2607.2,2606.9,3.83596501]
[1748950763196,0.9428,2607.5,2606.6,2.90742074]
[1748950763490,3.892,2607.2,2606.9,3.83583931]
[1748950763792,3.892,2607.3,2606.9,3.83590876]
[1748950765899,3.892,2607.3,2607.0,3.83582255]
[1748950766194,3.892,2607.3,2606.9,3.83591181]
[1748950767696,3.892,2607.3,2606.9,3.83588982]
[1748950767896,0.9428,2607.5,2607.0,3.83573434]
[1748950768073,3.892,2607.3,2607.0,3.83573434]
[1748950769198,0.9482,2607.8,2607.6,3.83489367]
[1748950769404,0.9482,2607.8,2607.6,3.83487602]
[1748950769598,3.891,2607.8,2607.6,3.83486525]
[1748950770297,0.9482,2608.0,2607.7,3.83479289]
[1748950770501,3.891,2607.9,2607.6,3.83490559]
[1748950770827,3.891,2607.9,2607.5,3.83501879]
[1748950771498,3.891,2607.9,2607.5,3.83500284]
[1748950772218,3.891,2607.9,2607.4,3.8351464]
[1748950772219,3.891,2607.9,2607.6,3.83493904]
[1748950773889,3.891,2607.9,2607.7,3.83478885]
[1748950774311,3.891,2607.9,2607.6,3.83487386]
[1748950774605,3.891,2607.9,2607.7,3.8347949]
[1748950775934,3.891,2607.9,2607.5,3.83502449]
[1748950776130,3.891,2607.9,2607.1,3.83563601]
[1748950776347,0.8851,2607.8,2607.4,3.83522174]
[1748950776995,0.8851,2607.8,2607.0,3.83582662]
[1748950777200,0.9759,2607.7,2606.8,9.003]
[1748950777456,0.9759,2607.7,2607.2,3.83546792]
[1748950777604,0.38833207,2607.6,2607.3,3.83537031]
[1748950779016,0.38833207,2607.6,2607.1,3.83562465]
[1748950779017,3.891,2607.5,2607.2,3.83546012]
[1748950779743,3.891,2607.5,2607.3,3.83538108]
[1748950780316,0.9483,2607.4,2607.1,11.8355422]
[1748950780523,0.9483,2607.4,2607.2,3.83547363]
[1748950780728,0.9483,2607.4,2607.3,3.83538526]
[1748950784958,0.9661,2607.9,2607.4,3.8352163]
[1748950785150,4.27835207,2607.8,2607.4,3.8352163]
[1748950785346,0.38735207,2607.8,2607.4,3.8352163]
[1748950785551,3.891,2607.7,2607.4,3.8352163]
[1748950786240,3.891,2607.7,2607.3,3.83529888]
[1748950786765,3.891,2607.7,2607.2,3.83548635]
[1748950786948,4.41544521,2607.7,2607.3,3.83524175]
[1748950787327,4.41544521,2607.7,2607.4,3.83522948]
[1748950788829,4.41544521,2607.7,2607.3,3.83525897]
[1748950789029,4.41544521,2607.7,2607.4,3.83521203]
[1748950790269,4.41544521,2607.7,2607.3,3.83529892]
[1748950790562,0.44154452,2607.6,2607.3,3.83529892]
[1748950790759,0.44154452,2607.6,2607.4,3.83522247]
[1748950791628,3.89,2607.5,2607.4,3.83522247]
[1748950792667,0.9661,2607.9,2607.4,3.83522247]
[1748950792865,3.89,2607.8,2607.5,3.83497557]
[1748950793295,0.48561,2607.8,2607.2,3.83550765]
[1748950793456,3.89,2607.8,2607.6,3.83487264]
[1748950795153,3.89,2607.8,2607.5,3.83500217]
[1748950795986,3.89,2607.7,2607.6,3.83481819]
[1748950797790,3.89,2607.7,2607.5,3.83504132]
[1748950798192,3.89,2607.7,2607.6,3.834944]
[1748950798389,0.9661,2607.9,2607.6,3.834944]
[1748950798596,3.89,2607.7,2607.6,3.834944]
[1748950798796,0.9661,2607.9,2607.7,3.8347778]
[1748950799000,1.9332,2608.1,2607.7,3.8347778]
[1748950799206,3.89,2607.8,2607.7,3.8347778]
[1748950799390,1.9332,2608.1,2607.7,3.8347778]
[1748950799699,4.87632,2608.0,2607.7,3.8347778]
[1748950799901,3.89,2608.0,2607.7,3.8347778]
[1748950801078,3.89,2608.0,2607.6,3.83487303]
[1748950802513,3.89,2608.0,2607.7,3.83475093]
[1748950802704,3.89,2607.9,2607.7,3.83475093]
[1748950803409,0.9302,2608.1,2607.8,3.83459486]
[1748950803606,3.89,2608.0,2607.8,3.83459486]
[1748950804068,3.89,2608.0,2607.7,3.83472821]
[1748950804708,0.9302,2608.1,2607.5,2.90742074]
[1748950805006,3.89,2608.1,2608.0,3.83423869]
[1748950805307,3.89,2608.2,2608.0,3.83423869]
[1748950805490,0.9105,2608.4,2608.1,3.83420881]
[1748950805666,0.9105,2608.4,2608.0,3.83427329]
[1748950805871,3.89,2608.3,2608.0,3.83427329]
[1748950806830,3.89,2608.3,2607.9,3.83448833]
[1748950807036,3.889,2608.3,2608.0,3.83420963]
[1748950807207,3.889,2608.3,2608.1,3.83416044]
[1748950807406,3.889,2608.3,2608.2,3.8340618]
[1748950807615,3.889,2608.4,2608.2,3.8340618]
[1748950807989,3.889,2608.4,2608.1,3.83411091]
[1748950808194,3.889,2608.4,2608.2,3.83406143]
[1748950809132,3.889,2608.4,2608.1,3.83413924]
[1748950810125,3.889,2608.4,2608.2,3.834011]
[1748950810497,3.889,2608.4,2608.1,3.83410259]
[1748950812628,0.909,2608.6,2608.1,3.83410259]
[1748950812834,3.889,2608.5,2608.1,3.83410259]
[1748950814242,3.889,2608.5,2608.2,3.83401861]
[1748950814401,3.889,2608.5,2608.1,3.83413077]
[1748950815741,3.889,2608.5,2608.2,3.83405554]
[1748950816238,3.889,2608.5,2608.1,3.83411871]
[1748950817201,3.889,2608.5,2608.1,3.83415408]
[1748950819046,3.889,2608.4,2608.0,3.83427248]
[1748950819450,0.909,2608.6,2608.1,3.83418665]
[1748950819746,3.889,2608.4,2608.1,3.83418665]
[1748950821150,3.889,2608.4,2608.2,3.83404147]
[1748950821652,3.889,2608.4,2608.2,3.83404835]
[1748950822147,3.889,2608.4,2608.1,3.83411856]
[1748950822521,0.909,2608.6,2608.1,3.83411856]
[1748950822711,3.888,2608.4,2608.1,3.83411856]
[1748950824948,0.909,2608.6,2608.1,3.83411856]
[1748950825246,0.909,2608.6,2608.1,2.90742074]
[1748950825450,4.797,2608.6,2608.4,3.83375039]
[1748950825949,4.797,2608.6,2608.3,3.83382687]
[1748950826321,4.797,2608.6,2608.1,3.83417478]
[1748950826524,4.797,2608.6,2608.2,0.38341748]
[1748950827011,4.797,2608.6,2608.1,3.83417478]
[1748950827216,3.8336975,2608.5,2607.8,3.83456383]
[1748950827440,0.9315,2608.5,2607.8,3.83456383]
[1748950827757,0.9315,2608.4,2607.5,0.39031584]
[1748950827955,0.9315,2608.2,2607.5,0.39031584]
[1748950828126,3.888,2608.1,2607.7,8.0]
[1748950828334,3.888,2608.1,2607.7,11.83478204]
[1748950828742,0.9285,2608.0,2607.5,0.70223523]
[1748950828946,0.9285,2607.9,2607.3,3.83533534]
[1748950829128,0.9285,2607.9,2607.2,3.83541266]
[1748950829339,0.9285,2607.9,2607.2,3.83548083]
[1748950829754,4.31612279,2608.0,2607.2,3.83548083]
[1748950829755,0.8972,2607.8,2607.2,3.83548083]
[1748950829957,3.888,2607.7,2607.2,3.83548083]
[1748950830330,4.7499707,2607.7,2607.2,3.83548083]
[1748950830632,0.8972,2607.6,2607.2,3.83548083]
[1748950832262,0.8972,2607.6,2607.3,3.83535297]
[1748950832752,3.888,2607.5,2607.4,3.83523816]
[1748950833659,3.888,2607.5,2607.2,3.83548008]
[1748950834027,3.888,2607.5,2607.3,3.83538205]
[1748950834641,3.888,2607.5,2607.4,3.83523816]
[1748950835478,3.888,2607.5,2607.3,3.83530143]
[1748950836379,3.888,2607.5,2607.2,3.83547141]
[1748950836677,3.888,2607.5,2607.3,3.83526703]
[1748950836835,3.888,2607.5,2607.1,7.68168507]
[1748950837035,3.888,2607.5,2607.3,3.83527593]
[1748950838067,3.888,2607.5,2607.2,3.83553237]
[1748950838268,3.888,2607.5,2607.3,3.83531738]
[1748950838728,3.888,2607.5,2607.4,3.83523816]
[1748950839751,3.888,2607.5,2607.3,3.8352693]
[1748950840277,3.888,2607.5,2607.4,3.83523816]
[1748950840479,3.888,2607.5,2607.3,3.83530555]
[1748950845582,3.888,2607.5,2607.4,3.83523816]
[1748950846581,3.888,2607.6,2607.2,2.90742074]
[1748950846780,0.9048,2607.8,2607.5,3.83498435]
[1748950846993,3.888,2607.7,2607.5,3.83498435]
[1748950847692,3.888,2607.6,2607.5,3.83498435]
[1748950848709,0.9048,2607.8,2607.5,3.83498435]
[1748950849017,3.888,2607.6,2607.5,3.83498435]
[1748950850877,0.9048,2607.8,2607.5,3.83498435]
[1748950851082,3.888,2607.7,2607.5,3.83498435]
[1748950851818,3.888,2607.7,2607.4,3.83514748]
[1748950852384,3.888,2607.7,2607.4,3.83521734]
[1748950853580,3.888,2607.7,2607.3,0.0257]
[1748950853779,3.888,2607.7,2607.4,3.83523359]
[1748950854294,3.888,2607.7,2607.2,3.83547973]
[1748950854295,3.888,2607.7,2607.3,3.83531582]
[1748950856083,3.888,2607.7,2607.2,3.83552095]
[1748950856732,3.888,2607.7,2607.3,3.83536033]
[1748950860063,3.888,2607.7,2607.2,3.83545116]
[1748950860210,3.888,2607.7,2607.1,11.54300041]
[1748950860407,3.888,2607.7,2607.2,3.83547441]
[1748950860823,3.888,2607.7,2607.3,3.83537722]
[1748950861260,3.888,2607.7,2607.2,3.83545115]
[1748950861908,3.888,2607.7,2607.1,7.70738507]
[1748950862108,3.888,2607.7,2607.2,3.83553237]
[1748950863503,3.888,2607.7,2607.3,3.83538189]
[1748950864404,3.888,2607.7,2607.2,3.83547357]
[1748950864647,3.888,2607.7,2607.3,3.83537245]
[1748950865428,3.888,2607.7,2607.2,3.83546244]
[1748950865633,0.9743,2607.6,2607.1,11.51728875]
[1748950865833,0.9743,2607.6,2607.2,3.83551954]
[1748950867749,0.9743,2607.6,2607.2,3.83547015]
[1748950868129,0.9743,2607.6,2607.3,3.83536076]
[1748950868731,0.9743,2607.6,2607.2,3.83544207]
[1748950868945,0.9743,2607.6,2607.3,3.83532577]
[1748950875973,0.9743,2607.6,2607.1,7.68168507]
[1748950876172,0.9114,2607.5,2606.7,9.4183118]
[1748950876376,0.9114,2607.5,2606.9,3.83583641]
[1748950876578,0.9114,2607.5,2607.0,3.83581325]
[1748950876801,0.52326372,2607.4,2607.0,3.83581325]
[1748950876947,3.887,2607.3,2607.0,3.83574594]
[1748950879773,3.887,2607.3,2606.7,8.19965064]
[1748950880165,3.887,2607.3,2606.9,3.83582958]
[1748950880540,3.887,2607.3,2607.0,3.83571195]
[1748950880741,3.887,2607.3,2606.9,3.83582958]
[1748950880978,3.887,2607.3,2607.0,3.83571092]
[1748950881595,3.887,2607.3,2607.1,3.83564927]
[1748950881891,0.9809,2607.2,2607.0,3.83574236]
[1748950882059,0.9809,2607.2,2607.0,3.83581336]
[1748950882896,1.46769,2607.2,2606.5,1.21866116]
[1748950883191,1.0047,2607.1,2606.6,8.0]
[1748950883391,1.0047,2607.0,2606.2,3.90381987]
[1748950883580,1.0047,2606.8,2606.4,3.83670787]
[1748950883782,1.0047,2606.8,2606.5,8.0]
[1748950883985,1.0047,2606.8,2606.2,8.0]
[1748950884191,1.0047,2606.8,2606.3,3.83679248]
[1748950884571,1.0047,2606.8,2606.1,0.60726222]
[1748950884771,0.9324,2606.6,2606.1,0.02]
[1748950885089,3.887,2606.5,2606.2,3.83698155]
[1748950886773,3.887,2606.5,2606.3,3.83682882]
[1748950887090,3.887,2606.5,2606.1,11.85705313]
[1748950887091,3.887,2606.5,2606.2,3.8369418]
[1748950887711,3.887,2606.5,2606.3,3.83684222]
[1748950887910,0.9324,2606.6,2606.4,3.83669914]
[1748950888209,3.888,2606.5,2606.3,3.83672651]
[1748950888712,3.888,2606.5,2606.4,3.83670963]
[1748950889943,4.87,2606.5,2606.4,3.83670963]
[1748950890106,4.87,2606.5,2606.2,3.83700299]
[1748950890826,4.87,2606.5,2606.1,11.85708124]
[1748950892036,5.357,2606.5,2606.1,3.85708124]
[1748950892247,5.357,2606.5,2606.2,3.8369786]
[1748950893042,5.357,2606.5,2606.0,8.0]
[1748950893542,5.357,2606.5,2606.2,3.83699198]
[1748950895862,5.357,2606.5,2606.3,3.83684645]
[1748950896355,5.357,2606.5,2606.2,3.83691575]
[1748950896524,4.87,2606.5,2606.2,3.83691575]
[1748950898018,4.87,2606.5,2606.1,3.83712317]
[1748950898219,4.87,2606.5,2606.2,3.83694297]
[1748950899946,4.87,2606.5,2606.0,7.80881315]
[1748950900152,4.87,2606.5,2606.2,3.83693235]
[1748950900845,4.87,2606.5,2606.1,3.83708558]
[1748950901147,4.87,2606.5,2606.3,3.83684864]
[1748950902243,0.982,2606.5,2606.3,3.83681327]
[1748950902446,3.888,2606.4,2606.1,2.90742074]
[1748950902748,3.888,2606.4,2606.3,3.83685684]
[1748950903561,3.8359143,2607.0,2606.3,2.90742074]
[1748950903562,0.9578,2607.0,2606.3,2.90742074]
[1748950903712,3.888,2606.9,2606.5,6.74398318]
[1748950903905,0.9578,2607.0,2606.6,3.83630626]
[1748950904135,3.888,2606.8,2606.7,3.83615013]
[1748950904490,7.93,2607.6,2607.1,3.83567949]
[1748950904629,7.93,2607.6,2606.9,0.0669]
[1748950904630,1.0085,2607.8,2607.4,3.8351723]
[1748950904833,1.0085,2607.8,2607.6,8.0]
[1748950905052,3.888,2607.7,2607.5,3.83500921]
[1748950905262,3.888,2607.6,2607.5,11.83500921]
[1748950906168,1.0085,2607.8,2607.7,3.83479694]
[1748950906373,4.8955,2607.8,2607.6,3.83490308]
[1748950906969,1.0085,2607.8,2607.6,3.83490308]
[1748950907166,3.887,2607.7,2607.6,3.83490308]
[1748950908162,3.887,2607.7,2607.5,3.83501737]
[1748950908661,1.0085,2607.8,2607.5,3.83501737]
[1748950908860,3.887,2607.7,2607.6,3.83484998]
[1748950909262,3.887,2607.7,2607.6,4.05034686]
[1748950909470,3.887,2607.7,2607.6,3.83484998]
[1748950909671,3.887,2607.7,2607.6,4.05034803]
[1748950909870,3.887,2607.7,2607.6,4.05034774]
[1748950910071,3.887,2607.7,2607.6,3.83484998]
[1748950911042,3.887,2607.7,2607.4,3.835189]
[1748950911243,3.887,2607.7,2607.5,3.8350145]
[1748950911661,3.887,2607.7,2607.6,3.834944]
[1748950911870,3.887,2607.7,2607.4,3.83514183]
[1748950912065,3.887,2607.7,2607.5,3.83500931]
[1748950913976,3.887,2607.7,2607.6,3.834944]
[1748950914154,3.887,2607.7,2607.6,4.05043767]
[1748950914360,3.887,2607.7,2607.6,3.834944]
[1748950916082,3.887,2607.7,2607.4,3.83518987]
[1748950916287,3.887,2607.7,2607.5,0.2154948]
[1748950916459,3.887,2607.7,2607.6,0.21549566]
[1748950916655,3.887,2607.7,2607.5,3.83496449]
[1748950918079,3.887,2607.7,2607.6,0.21549747]
[1748950918280,3.887,2607.7,2607.4,3.83519158]
[1748950918490,3.887,2607.7,2607.5,0.21549737]
[1748950918658,3.887,2607.7,2607.6,0.21549733]
[1748950918985,3.887,2607.7,2607.4,3.83519158]
[1748950920211,3.887,2607.7,2607.5,3.83508706]
[1748950920378,3.887,2607.7,2607.5,3.8350185]
[1748950921202,3.887,2607.7,2607.3,8.35925304]
[1748950921417,3.887,2607.7,2607.5,3.83502453]
[1748950921618,3.887,2607.7,2607.5,3.83501495]
[1748950923431,3.887,2607.7,2607.3,8.35925304]
[1748950923585,3.887,2607.7,2607.4,3.83509928]
[1748950923915,3.885,2607.6,2607.5,3.83501501]
[1748950925784,3.885,2607.6,2607.5,4.0505086]
[1748950925985,3.885,2607.6,2607.5,3.83501501]
[1748950926631,1.0085,2607.8,2607.6,3.83490633]
[1748950926788,3.885,2607.6,2607.5,3.83500411]
[1748950928187,3.885,2607.6,2607.4,3.8351154]
[1748950930194,1.0085,2607.8,2607.5,3.83495942]
[1748950930393,3.885,2607.7,2607.5,3.83495942]
[1748950931113,3.885,2607.7,2607.6,3.834944]
[1748950931512,3.885,2607.7,2607.5,3.8350022]
[1748950931890,3.885,2607.7,2607.5,3.83502046]
[1748950932085,3.885,2607.7,2607.6,3.834944]
[1748950932290,3.885,2607.7,2607.6,4.0504358]
[1748950932509,3.885,2607.7,2607.5,3.83500612]
[1748950933091,3.885,2607.7,2607.4,6.74257826]
[1748950933322,3.885,2607.7,2607.4,3.83515752]
[1748950933990,3.885,2607.7,2607.5,0.21549437]
[1748950934212,3.885,2607.7,2607.4,3.83515752]
[1748950936062,3.885,2607.7,2607.5,3.83508184]
[1748950936227,3.885,2607.7,2607.6,3.834944]
[1748950936839,3.885,2607.7,2607.5,3.83501084]
[1748950938143,3.885,2607.7,2607.6,3.834944]
[1748950938511,3.885,2607.7,2607.5,3.83501263]
[1748950938918,3.885,2607.7,2607.6,0.21549363]
[1748950939147,3.885,2607.7,2607.6,3.834944]
[1748950939330,3.885,2607.7,2607.5,3.83500421]
[1748950939868,3.885,2607.7,2607.3,12.51415593]
[1748950939869,4.37635,2607.7,2607.3,12.51415593]
[1748950940034,0.9426,2607.5,2606.7,8.0]
[1748950940229,4.77769179,2607.5,2607.0,8.0]
[1748950940556,0.9726,2607.4,2606.9,3.835896]
[1748950940758,3.885,2607.3,2607.0,8.0]
[1748950941058,3.885,2607.2,2607.1,3.83556122]
[1748950941254,3.885,2607.2,2607.1,4.05108824]
[1748950941456,3.885,2607.2,2607.1,3.83556122]
[1748950941658,3.885,2607.2,2607.1,3.83566294]
[1748950943516,1.0046,2607.8,2607.3,3.83526908]
[1748950943722,3.885,2607.7,2607.5,3.83501001]
[1748950943925,4.37596,2607.7,2607.4,3.83515448]
[1748950945154,4.37596,2607.7,2607.5,0.2155002]
[1748950945367,4.37596,2607.7,2607.4,3.83515448]
[1748950945575,4.37596,2607.7,2607.5,8.0]
[1748950949061,4.37596,2607.7,2607.4,8.0]
[1748950949473,4.37596,2607.7,2607.5,0.21550428]
[1748950949678,4.37596,2607.7,2607.4,8.0]
[1748950949893,4.37596,2607.7,2607.3,8.0]
[1748950950056,4.37596,2607.7,2607.5,0.21550462]
[1748950950057,0.538056,2607.6,2607.5,0.21550462]
[1748950954269,1.492456,2607.6,2607.5,0.43101383]
[1748950954473,1.492456,2607.6,2607.5,0.21550462]
[1748950955485,1.492456,2607.6,2607.5,0.43101525]
[1748950955685,1.492456,2607.6,2607.5,0.21550462]
[1748950956559,1.492456,2607.6,2607.5,0.43101574]
[1748950956761,1.492456,2607.6,2607.5,0.21550462]
[1748950957591,1.492456,2607.6,2607.5,0.4310149]
[1748950957751,1.492456,2607.6,2607.5,0.21550462]
[1748950959077,1.492456,2607.6,2607.5,0.43102413]
[1748950959277,5.3274,2607.6,2607.5,0.21550462]
[1748950960302,1.492456,2607.6,2607.5,0.21550462]
[1748950961097,1.492456,2607.6,2607.5,0.43104222]
[1748950961392,1.492456,2607.6,2607.5,0.21550462]
[1748950964407,1.492456,2607.6,2607.5,0.43103544]
[1748950964705,1.492456,2607.6,2607.5,0.21550462]
[1748950965468,1.492456,2607.6,2607.5,0.43103876]
[1748950965809,1.492456,2607.6,2607.5,0.21550462]
[1748950969526,1.492456,2607.6,2607.5,0.21550462]
[1748950969712,1.492456,2607.6,2607.5,0.43103788]
[1748950970022,1.492456,2607.6,2607.5,0.21550462]
[1748950970394,4.8384,2607.6,2607.5,0.21550462]
[1748950971116,8.673344,2607.6,2607.5,0.43103295]
[1748950971278,8.673344,2607.6,2607.5,0.21550462]
[1748950972779,11.58076474,2607.6,2607.5,0.21550462]
[1748950973005,13.12232282,2607.6,2607.5,0.21550462]
[1748950973211,0.9222,2607.3,2606.7,3.8362505]
[1748950973383,3.884,2607.2,2606.7,3.8362505]
[1748950975009,3.884,2607.2,2606.6,3.83633183]
[1748950975178,3.884,2607.2,2606.7,3.83625821]
[1748950975618,3.884,2607.2,2606.6,3.83635336]
[1748950975824,4.66125968,2607.2,2606.6,3.83635336]
[1748950978017,4.66125968,2607.2,2606.5,3.83641842]
[1748950978315,0.935,2607.1,2606.2,2.90742074]
[1748950978719,0.935,2607.1,2606.6,3.83641493]
[1748950978924,0.935,2607.1,2606.5,3.83648573]
[1748950979425,0.935,2607.1,2606.6,3.83641043]
[1748950980386,0.935,2607.1,2606.5,3.83648201]
[1748950980717,0.935,2607.1,2606.5,3.83649152]
[1748950981126,0.935,2607.1,2606.6,3.83635232]
[1748950982336,0.935,2607.1,2606.2,2.90742074]
[1748950982491,3.83587724,2607.0,2606.3,3.83675543]
[1748950982807,4.79045097,2607.0,2606.3,3.83685684]
[1748950983409,0.9546,2606.9,2606.4,3.83666297]
[1748950983589,3.884,2606.8,2606.2,6.744361]
[1748950983793,0.9617,2606.7,2605.9,0.39032915]
[1748950983998,0.9617,2606.7,2606.2,3.83691605]
[1748950984624,0.9617,2606.7,2606.1,3.83715129]
[1748950985440,0.9617,2606.7,2606.2,8.0]
[1748950985739,0.9617,2606.7,2606.1,8.0]
[1748950985906,0.9617,2606.7,2606.1,11.83704211]
[1748950986992,0.95493587,2606.7,2606.1,8.0]
[1748950987294,0.9839,2606.6,2606.1,8.0]
[1748950987530,0.9896,2606.5,2605.9,11.83738027]
[1748950987746,0.9896,2606.3,2605.7,3.83763411]
[1748950988056,0.87103273,2606.2,2605.7,3.8376547]
[1748950988330,0.87103273,2606.2,2605.8,8.0]
[1748950988631,0.87103273,2606.2,2605.7,11.83766233]
[1748950989213,0.87103273,2606.2,2605.7,8.0]
[1748950989412,0.9896,2606.1,2605.7,11.8376684]
[1748950989618,3.884,2606.0,2605.7,11.8376684]
[1748950990514,3.884,2606.0,2605.8,3.83756271]
[1748950990713,3.884,2606.0,2605.7,3.83765827]
[1748950991320,3.884,2606.0,2605.8,3.83753327]
[1748950992037,3.884,2606.0,2605.6,8.37987927]
[1748950992038,8.8589,2606.7,2606.1,3.83715129]
[1748950992238,3.884,2606.6,2606.4,8.0]
[1748950995445,8.8589,2606.7,2606.4,8.0]
[1748950995655,3.884,2606.5,2606.4,8.0]
[1748950996027,0.9289,2606.7,2606.4,11.836704]
[1748950996336,3.884,2606.5,2606.4,11.836704]
[1748950996536,3.884,2606.5,2606.4,8.0]
[1748950998743,3.884,2606.5,2606.3,8.0]
[1748950998965,0.9289,2606.7,2606.4,3.83670963]
[1748950999174,3.884,2606.6,2606.4,3.83670963]
[1748950999530,3.884,2606.6,2606.4,3.83659099]
[1748951000469,3.884,2606.5,2606.4,3.83659099]
[1748951001035,3.884,2606.5,2606.3,3.83682013]
[1748951001229,4.8579,2606.5,2606.3,3.83682013]
[1748951002177,4.8579,2606.5,2606.4,3.83670963]
[1748951002640,4.8579,2606.5,2606.3,3.836783]
[1748951003075,4.8579,2606.5,2606.4,3.83670963]
[1748951003449,4.8579,2606.5,2606.2,11.30778377]
[1748951004472,4.8579,2606.5,2606.3,3.83685684]
[1748951004966,4.8579,2606.5,2606.4,3.83670963]
[1748951005171,0.9739,2606.5,2606.4,3.83670963]
[1748951005366,3.884,2606.5,2606.4,3.83670963]
[1748951006469,3.884,2606.5,2606.3,3.83678916]
[1748951007437,3.884,2606.5,2606.4,8.0]
[1748951008473,3.884,2606.5,2606.4,11.83670963]
[1748951011979,3.884,2606.5,2606.4,8.0]
[1748951013351,3.884,2606.5,2606.4,11.83670963]
[1748951014285,3.884,2606.5,2606.4,8.0]
[1748951014689,3.884,2606.5,2606.4,11.83670963]
[1748951015053,3.884,2606.5,2606.4,8.0]
[1748951015453,3.884,2606.5,2606.4,11.83670963]
[1748951016082,0.9384,2606.7,2606.5,8.0]
[1748951016288,3.883,2606.6,2606.4,8.0]
[1748951016484,3.883,2606.6,2606.5,3.83644462]
[1748951016887,0.9373,2606.9,2606.4,11.8367042]
[1748951016888,0.9373,2606.9,2606.7,8.0]